[Event "Titled Tuesday Blitz April 12 Late 2022"]
[White "Gatterer, Florian"]
[Black "Seo, Jung Min"]
[WhiteFideId "811688"]
[BlackFideId "1734687"]
[WhiteElo "2218"]
[BlackElo "2401"]
[Result "0-1"]
[Round "01"]
[TimeControl "180+1"]
[Date "2022.04.13"]
[WhiteClock "0:00:01"]
[BlackClock "0:00:38"]

1. b3 {[%clk 0:02:52]}  d5 {[%clk 0:02:54]} 2. Nf3 {[%clk 0:02:51]}  c5 {[%clk 0:02:54]} 3. e3 {[%clk 0:02:50]}  a6 {[%clk 0:02:54]} 4. Bb2 {[%clk 0:02:49]}  Nc6 {[%clk 0:02:54]} 5. d4 {[%clk 0:02:49]}  cxd4 {[%clk 0:02:52]} 6. Nxd4 {[%clk 0:02:47]}  Nf6 {[%clk 0:02:52]} 7. Be2 {[%clk 0:02:46]}  g6 {[%clk 0:02:45]} 8. O-O {[%clk 0:02:44]}  Bg7 {[%clk 0:02:45]} 9. c4 {[%clk 0:02:43]}  O-O {[%clk 0:02:45]} 10. cxd5 {[%clk 0:02:41]}  Qxd5 {[%clk 0:02:44]} 11. Nc3 {[%clk 0:02:36]}  Qd6 {[%clk 0:02:41]} 12. Nxc6 {[%clk 0:02:33]}  Qxc6 {[%clk 0:02:41]} 13. Bf3 {[%clk 0:02:32]}  Qb6 {[%clk 0:02:39]} 14. Rc1 {[%clk 0:02:21]}  Rd8 {[%clk 0:02:33]} 15. Na4 {[%clk 0:02:05]}  Qa5 {[%clk 0:02:28]} 16. Bc3 {[%clk 0:02:01]}  Rxd1 {[%clk 0:02:10]} 17. Bxa5 {[%clk 0:01:50]}  Rxf1+ {[%clk 0:02:10]} 18. Kxf1 {[%clk 0:01:41]}  Nd7 {[%clk 0:02:08]} 19. Nb6 {[%clk 0:01:36]}  Nxb6 {[%clk 0:02:07]} 20. Bxb6 {[%clk 0:01:34]}  Be5 {[%clk 0:02:06]} 21. Bd4 {[%clk 0:01:17]}  Bxd4 {[%clk 0:02:00]} 22. exd4 {[%clk 0:01:18]}  Kf8 {[%clk 0:01:58]} 23. Rc7 {[%clk 0:01:14]}  Rb8 {[%clk 0:01:58]} 24. Ke1 {[%clk 0:01:07]}  Ke8 {[%clk 0:01:58]} 25. Kd2 {[%clk 0:01:06]}  Kd8 {[%clk 0:01:58]} 26. Rc3 {[%clk 0:01:03]}  Bd7 {[%clk 0:01:55]} 27. g3 {[%clk 0:00:58]}  b6 {[%clk 0:01:55]} 28. Ke3 {[%clk 0:00:53]}  a5 {[%clk 0:01:52]} 29. h4 {[%clk 0:00:48]}  h6 {[%clk 0:01:48]} 30. Kf4 {[%clk 0:00:48]}  b5 {[%clk 0:01:41]} 31. Ke3 {[%clk 0:00:44]}  Rb6 {[%clk 0:01:40]} 32. Rc5 {[%clk 0:00:43]}  a4 {[%clk 0:01:29]} 33. b4 {[%clk 0:00:42]}  a3 {[%clk 0:01:27]} 34. Rc3 {[%clk 0:00:37]}  Ra6 {[%clk 0:01:26]} 35. d5 {[%clk 0:00:33]}  Ra4 {[%clk 0:01:25]} 36. Rb3 {[%clk 0:00:32]}  Kc7 {[%clk 0:01:25]} 37. Kd4 {[%clk 0:00:31]}  Kd6 {[%clk 0:01:25]} 38. Be4 {[%clk 0:00:29]}  e5+ {[%clk 0:01:21]} 39. Ke3 {[%clk 0:00:16]}  f5 {[%clk 0:01:20]} 40. Bg2 {[%clk 0:00:16]}  g5 {[%clk 0:01:15]} 41. hxg5 {[%clk 0:00:15]}  hxg5 {[%clk 0:01:16]} 42. f4 {[%clk 0:00:15]}  gxf4+ {[%clk 0:01:10]} 43. gxf4 {[%clk 0:00:15]}  Ra8 {[%clk 0:01:09]} 44. fxe5+ {[%clk 0:00:13]}  Kxe5 {[%clk 0:01:09]} 45. d6 {[%clk 0:00:14]}  Ra6 {[%clk 0:01:08]} 46. Rc3 {[%clk 0:00:12]}  Be6 {[%clk 0:01:01]} 47. Rc5+ {[%clk 0:00:12]}  Kxd6 {[%clk 0:01:01]} 48. Rxb5 {[%clk 0:00:11]}  Bxa2 {[%clk 0:01:00]} 49. Rxf5 {[%clk 0:00:10]}  Be6 {[%clk 0:00:58]} 50. Rf1 {[%clk 0:00:10]}  a2 {[%clk 0:00:59]} 51. Ra1 {[%clk 0:00:09]}  Ra3+ {[%clk 0:00:59]} 52. Kd4 {[%clk 0:00:08]}  Rg3 {[%clk 0:00:55]} 53. Be4 {[%clk 0:00:07]}  Rg4 {[%clk 0:00:54]} 54. Ke3 {[%clk 0:00:06]}  Ke5 {[%clk 0:00:52]} 55. Bd3 {[%clk 0:00:05]}  Rxb4 {[%clk 0:00:50]} 56. Kd2 {[%clk 0:00:04]}  Kd4 {[%clk 0:00:50]} 57. Kc2 {[%clk 0:00:04]}  Rb8 {[%clk 0:00:41]} 58. Bg6 {[%clk 0:00:04]}  Rg8 {[%clk 0:00:40]} 59. Bh7 {[%clk 0:00:04]}  Rg2+ {[%clk 0:00:39]} 60. Kc1 {[%clk 0:00:04]}  Kc3 {[%clk 0:00:39]} 61. Bc2 {[%clk 0:00:02]}  Rxc2+ {[%clk 0:00:38]} 62. Kd1 {[%clk 0:00:01]}  Rb2 {[%clk 0:00:38]} 0-1


[Site "https://www.chess.com"]

[Event "Titled Tuesday Blitz April 12 Late 2022"]
[White "Gharibyan, Mamikon"]
[Black "Melikhov, Evgeny V."]
[WhiteFideId "13308300"]
[BlackFideId "4122046"]
[WhiteElo "2254"]
[BlackElo "1931"]
[Result "1-0"]
[Round "01"]
[TimeControl "180+1"]
[Date "2022.04.13"]
[WhiteClock "0:00:14"]
[BlackClock "0:00:01"]

1. e4 {[%clk 0:02:53]}  e5 {[%clk 0:02:59]} 2. Nf3 {[%clk 0:02:52]}  Nc6 {[%clk 0:02:59]} 3. Bc4 {[%clk 0:02:49]}  Nf6 {[%clk 0:02:59]} 4. d3 {[%clk 0:02:47]}  Be7 {[%clk 0:02:58]} 5. O-O {[%clk 0:02:41]}  d6 {[%clk 0:02:57]} 6. h3 {[%clk 0:02:39]}  O-O {[%clk 0:02:54]} 7. a4 {[%clk 0:02:39]}  Be6 {[%clk 0:02:53]} 8. Bxe6 {[%clk 0:02:27]}  fxe6 {[%clk 0:02:52]} 9. c3 {[%clk 0:02:27]}  Qd7 {[%clk 0:02:40]} 10. a5 {[%clk 0:02:21]}  a6 {[%clk 0:02:23]} 11. Re1 {[%clk 0:02:08]}  Bd8 {[%clk 0:02:21]} 12. d4 {[%clk 0:02:04]}  exd4 {[%clk 0:02:18]} 13. cxd4 {[%clk 0:02:05]}  Ne7 {[%clk 0:02:09]} 14. Nc3 {[%clk 0:02:03]}  c6 {[%clk 0:02:05]} 15. e5 {[%clk 0:01:56]}  Nfd5 {[%clk 0:01:52]} 16. exd6 {[%clk 0:01:54]}  Qxd6 {[%clk 0:01:50]} 17. Ng5 {[%clk 0:01:43]}  Bc7 {[%clk 0:01:46]} 18. g3 {[%clk 0:01:39]}  Nxc3 {[%clk 0:01:41]} 19. bxc3 {[%clk 0:01:34]}  h6 {[%clk 0:01:02]} 20. Ba3 {[%clk 0:01:31]}  Qd7 {[%clk 0:00:40]} 21. Nxe6 {[%clk 0:01:27]}  Rf7 {[%clk 0:00:41]} 22. Bxe7 {[%clk 0:01:18]}  Rxe7 {[%clk 0:00:39]} 23. Qb3 {[%clk 0:01:16]}  Kh8 {[%clk 0:00:36]} 24. Kg2 {[%clk 0:00:41]}  Rae8 {[%clk 0:00:32]} 25. Nc5 {[%clk 0:00:41]}  Qf5 {[%clk 0:00:23]} 26. Rxe7 {[%clk 0:00:38]}  Rxe7 {[%clk 0:00:23]} 27. Qxb7 {[%clk 0:00:29]}  Bxg3 {[%clk 0:00:23]} 28. Qa8+ {[%clk 0:00:22]}  Kh7 {[%clk 0:00:23]} 29. Kxg3 {[%clk 0:00:20]}  Qg5+ {[%clk 0:00:20]} 30. Kh2 {[%clk 0:00:20]}  Qf4+ {[%clk 0:00:20]} 31. Kg2 {[%clk 0:00:20]}  Qg5+ {[%clk 0:00:19]} 32. Kf1 {[%clk 0:00:21]}  Qf5 {[%clk 0:00:15]} 33. Qxc6 {[%clk 0:00:21]}  Qxh3+ {[%clk 0:00:15]} 34. Qg2 {[%clk 0:00:19]}  Qxc3 {[%clk 0:00:15]} 35. Rd1 {[%clk 0:00:19]}  Qxa5 {[%clk 0:00:09]} 36. Qf3 {[%clk 0:00:19]}  Qc7 {[%clk 0:00:05]} 37. Qf5+ {[%clk 0:00:18]}  Kh8 {[%clk 0:00:04]} 38. Kg2 {[%clk 0:00:19]}  Rf7 {[%clk 0:00:04]} 39. Qg4 {[%clk 0:00:17]}  Qc6+ {[%clk 0:00:03]} 40. Kg1 {[%clk 0:00:14]}  Rf6 {[%clk 0:00:02]} 41. Kf1 {[%clk 0:00:14]}  Rg6 {[%clk 0:00:02]} 42. Qh3 {[%clk 0:00:14]}  Qb5+ {[%clk 0:00:02]} 43. Qd3 {[%clk 0:00:14]}  Qc6 {[%clk 0:00:01]} 44. d5 {[%clk 0:00:14]}  Qf6 {[%clk 0:00:01]} 45. Ne6 {[%clk 0:00:14]} 1-0


[Site "https://www.chess.com"]

[Event "Titled Tuesday Blitz April 12 Late 2022"]
[White "Hardaway, Brewington"]
[Black "De Souza, Cristiano Gomes"]
[WhiteFideId "30941849"]
[BlackFideId "2151758"]
[WhiteElo "1768"]
[BlackElo "2068"]
[Result "1-0"]
[Round "01"]
[TimeControl "180+1"]
[Date "2022.04.13"]
[WhiteClock "0:00:50"]
[BlackClock "0:01:21"]

1. d4 {[%clk 0:03:00]}  Nf6 {[%clk 0:02:59]} 2. c4 {[%clk 0:02:54]}  g6 {[%clk 0:02:59]} 3. Nc3 {[%clk 0:02:53]}  Bg7 {[%clk 0:02:59]} 4. Nf3 {[%clk 0:02:47]}  d6 {[%clk 0:02:59]} 5. e4 {[%clk 0:02:47]}  O-O {[%clk 0:02:57]} 6. Be2 {[%clk 0:02:47]}  e5 {[%clk 0:02:56]} 7. O-O {[%clk 0:02:44]}  Nc6 {[%clk 0:02:55]} 8. d5 {[%clk 0:02:44]}  Ne7 {[%clk 0:02:55]} 9. b4 {[%clk 0:02:43]}  Nh5 {[%clk 0:02:49]} 10. g3 {[%clk 0:02:32]}  f5 {[%clk 0:02:48]} 11. Ng5 {[%clk 0:02:30]}  Nf6 {[%clk 0:02:45]} 12. c5 {[%clk 0:02:19]}  a6 {[%clk 0:02:43]} 13. cxd6 {[%clk 0:02:11]}  cxd6 {[%clk 0:02:42]} 14. exf5 {[%clk 0:02:09]}  Bxf5 {[%clk 0:02:27]} 15. b5 {[%clk 0:02:01]}  h6 {[%clk 0:02:26]} 16. Ne6 {[%clk 0:02:00]}  Bxe6 {[%clk 0:02:26]} 17. dxe6 {[%clk 0:02:01]}  d5 {[%clk 0:02:26]} 18. bxa6 {[%clk 0:01:43]}  bxa6 {[%clk 0:02:24]} 19. Ba3 {[%clk 0:01:44]}  d4 {[%clk 0:02:20]} 20. Na4 {[%clk 0:01:40]}  Re8 {[%clk 0:02:13]} 21. Rb1 {[%clk 0:01:34]}  Qd5 {[%clk 0:02:09]} 22. Nb6 {[%clk 0:01:32]}  Qxe6 {[%clk 0:02:06]} 23. Nxa8 {[%clk 0:01:31]}  Rxa8 {[%clk 0:02:03]} 24. Qa4 {[%clk 0:01:30]}  Kh7 {[%clk 0:01:59]} 25. Bc4 {[%clk 0:01:27]}  Ned5 {[%clk 0:01:53]} 26. Rb7 {[%clk 0:01:26]}  Nc3 {[%clk 0:01:43]} 27. Bxe6 {[%clk 0:00:57]}  Nxa4 {[%clk 0:01:42]} 28. Bd6 {[%clk 0:00:56]}  e4 {[%clk 0:01:31]} 29. Be5 {[%clk 0:00:55]}  Nh5 {[%clk 0:01:31]} 30. g4 {[%clk 0:00:53]}  Re8 {[%clk 0:01:27]} 31. gxh5 {[%clk 0:00:52]}  Rxe6 {[%clk 0:01:26]} 32. Rxg7+ {[%clk 0:00:51]}  Kh8 {[%clk 0:01:26]} 33. Bxd4 {[%clk 0:00:52]}  gxh5 {[%clk 0:01:21]} 34. Rg6+ {[%clk 0:00:51]}  Kh7 {[%clk 0:01:21]} 35. Rxe6 {[%clk 0:00:50]} 1-0


[Site "https://www.chess.com"]

[Event "Titled Tuesday Blitz April 12 Late 2022"]
[White "Hnydiuk, Aleksander"]
[Black "Harish, Neeraj"]
[WhiteFideId "1109057"]
[BlackFideId "30958130"]
[WhiteElo "2374"]
[BlackElo "1574"]
[Result "1-0"]
[Round "01"]
[TimeControl "180+1"]
[Date "2022.04.13"]
[WhiteClock "0:01:47"]
[BlackClock "0:00:14"]

1. Nf3 {[%clk 0:03:00]}  d5 {[%clk 0:02:55]} 2. d4 {[%clk 0:03:00]}  Nf6 {[%clk 0:02:55]} 3. c4 {[%clk 0:03:00]}  c6 {[%clk 0:02:54]} 4. cxd5 {[%clk 0:03:00]}  cxd5 {[%clk 0:02:54]} 5. Nc3 {[%clk 0:03:00]}  Nc6 {[%clk 0:02:53]} 6. Bf4 {[%clk 0:03:01]}  Bf5 {[%clk 0:02:51]} 7. e3 {[%clk 0:02:53]}  e6 {[%clk 0:02:50]} 8. Be2 {[%clk 0:02:47]}  Be7 {[%clk 0:02:41]} 9. O-O {[%clk 0:02:46]}  O-O {[%clk 0:02:41]} 10. Rc1 {[%clk 0:02:44]}  Rc8 {[%clk 0:02:36]} 11. a3 {[%clk 0:02:33]}  Nh5 {[%clk 0:02:10]} 12. Be5 {[%clk 0:02:21]}  f6 {[%clk 0:01:46]} 13. Bg3 {[%clk 0:02:20]}  Nxg3 {[%clk 0:01:45]} 14. hxg3 {[%clk 0:02:21]}  Qd7 {[%clk 0:01:26]} 15. b4 {[%clk 0:02:15]}  Rfd8 {[%clk 0:00:59]} 16. Qb3 {[%clk 0:02:13]}  Bg6 {[%clk 0:00:45]} 17. Rfd1 {[%clk 0:02:10]}  Bf7 {[%clk 0:00:21]} 18. Na4 {[%clk 0:02:10]}  b6 {[%clk 0:00:20]} 19. Bb5 {[%clk 0:02:01]}  Qd6 {[%clk 0:00:18]} 20. Rc3 {[%clk 0:01:55]}  Nb8 {[%clk 0:00:16]} 21. Rdc1 {[%clk 0:01:53]}  Rxc3 {[%clk 0:00:14]} 22. Rxc3 {[%clk 0:01:52]}  a6 {[%clk 0:00:14]} 23. Bf1 {[%clk 0:01:51]}  b5 {[%clk 0:00:14]} 24. Nc5 {[%clk 0:01:50]}  Nd7 {[%clk 0:00:14]} 25. a4 {[%clk 0:01:49]}  Nxc5 {[%clk 0:00:14]} 26. bxc5 {[%clk 0:01:47]}  b4 {[%clk 0:00:14]} 27. cxd6 {[%clk 0:01:47]} 1-0


[Site "https://www.chess.com"]

[Event "Titled Tuesday Blitz April 12 Late 2022"]
[White "Kobalia, Mikhail"]
[Black "Koutlas, Nikolaos"]
[WhiteFideId "4119150"]
[BlackFideId "25827138"]
[WhiteElo "2820"]
[BlackElo "2461"]
[Result "1-0"]
[Round "01"]
[TimeControl "180+1"]
[Date "2022.04.13"]
[WhiteClock "0:01:38"]
[BlackClock "0:00:29"]

1. e4 {[%clk 0:02:59]}  c5 {[%clk 0:02:56]} 2. Nf3 {[%clk 0:02:55]}  Nc6 {[%clk 0:02:56]} 3. Bb5 {[%clk 0:02:51]}  g6 {[%clk 0:02:55]} 4. Bxc6 {[%clk 0:02:50]}  dxc6 {[%clk 0:02:53]} 5. d3 {[%clk 0:02:50]}  Bg7 {[%clk 0:02:52]} 6. a4 {[%clk 0:02:49]}  e5 {[%clk 0:02:52]} 7. Nbd2 {[%clk 0:02:49]}  Qe7 {[%clk 0:02:50]} 8. Nc4 {[%clk 0:02:48]}  f6 {[%clk 0:02:20]} 9. a5 {[%clk 0:02:30]}  Be6 {[%clk 0:02:14]} 10. b3 {[%clk 0:02:30]}  Nh6 {[%clk 0:02:13]} 11. Qe2 {[%clk 0:02:29]}  Nf7 {[%clk 0:02:12]} 12. Ba3 {[%clk 0:02:26]}  Rb8 {[%clk 0:01:10]} 13. Qe3 {[%clk 0:02:25]}  b6 {[%clk 0:01:10]} 14. axb6 {[%clk 0:02:24]}  axb6 {[%clk 0:01:01]} 15. Nxb6 {[%clk 0:02:24]}  Rxb6 {[%clk 0:01:02]} 16. Bxc5 {[%clk 0:02:23]}  Bh6 {[%clk 0:00:59]} 17. Ra8+ {[%clk 0:02:06]}  Bc8 {[%clk 0:00:31]} 18. Rxc8+ {[%clk 0:01:39]}  Kd7 {[%clk 0:00:31]} 19. Bxe7 {[%clk 0:01:39]}  Bxe3 {[%clk 0:00:29]} 20. Rxh8 {[%clk 0:01:38]} 1-0


[Site "https://www.chess.com"]

[Event "Titled Tuesday Blitz April 12 Late 2022"]
[White "Korchmar, Vasiliy"]
[Black "Estrada Nieto, Julian"]
[WhiteFideId "24131750"]
[BlackFideId "5101018"]
[WhiteElo "2812"]
[BlackElo "2450"]
[Result "1-0"]
[Round "01"]
[TimeControl "180+1"]
[Date "2022.04.13"]
[WhiteClock "0:00:22"]
[BlackClock "0:00:41"]

1. d4 {[%clk 0:03:00]}  d5 {[%clk 0:02:57]} 2. Bf4 {[%clk 0:03:00]}  Nf6 {[%clk 0:02:56]} 3. e3 {[%clk 0:03:01]}  c5 {[%clk 0:02:56]} 4. Nf3 {[%clk 0:03:01]}  Nc6 {[%clk 0:02:57]} 5. Nbd2 {[%clk 0:03:02]}  e6 {[%clk 0:02:54]} 6. c3 {[%clk 0:03:02]}  h6 {[%clk 0:02:54]} 7. Bd3 {[%clk 0:03:01]}  Bd6 {[%clk 0:02:54]} 8. Bg3 {[%clk 0:03:01]}  Bxg3 {[%clk 0:02:48]} 9. hxg3 {[%clk 0:03:02]}  Qd6 {[%clk 0:02:48]} 10. Bb5 {[%clk 0:02:44]}  O-O {[%clk 0:02:47]} 11. Qe2 {[%clk 0:02:36]}  Bd7 {[%clk 0:02:26]} 12. Rd1 {[%clk 0:02:33]}  c4 {[%clk 0:02:22]} 13. Bxc6 {[%clk 0:02:30]}  Bxc6 {[%clk 0:02:22]} 14. Ne5 {[%clk 0:02:31]}  Nd7 {[%clk 0:02:21]} 15. Ndf3 {[%clk 0:02:20]}  f6 {[%clk 0:02:13]} 16. Ng6 {[%clk 0:02:18]}  Rfe8 {[%clk 0:02:13]} 17. Nfh4 {[%clk 0:02:14]}  Nf8 {[%clk 0:02:02]} 18. Qg4 {[%clk 0:02:07]}  Bd7 {[%clk 0:01:47]} 19. Nxf8 {[%clk 0:02:04]}  Kxf8 {[%clk 0:01:45]} 20. Ng6+ {[%clk 0:02:04]}  Kg8 {[%clk 0:01:43]} 21. Qf3 {[%clk 0:01:11]}  e5 {[%clk 0:01:33]} 22. dxe5 {[%clk 0:01:08]}  fxe5 {[%clk 0:01:31]} 23. Qxd5+ {[%clk 0:00:50]}  Qxd5 {[%clk 0:01:31]} 24. Rxd5 {[%clk 0:00:51]}  Bc6 {[%clk 0:01:32]} 25. Rxe5 {[%clk 0:00:50]}  Bxg2 {[%clk 0:01:31]} 26. Rh4 {[%clk 0:00:48]}  Kh7 {[%clk 0:01:16]} 27. Rxe8 {[%clk 0:00:33]}  Rxe8 {[%clk 0:01:16]} 28. Nf4 {[%clk 0:00:32]}  Bf3 {[%clk 0:01:14]} 29. Ne2 {[%clk 0:00:30]}  b5 {[%clk 0:00:59]} 30. Rf4 {[%clk 0:00:30]}  Bh5 {[%clk 0:00:51]} 31. Rf5 {[%clk 0:00:29]}  Bxe2 {[%clk 0:00:43]} 32. Kxe2 {[%clk 0:00:28]}  a6 {[%clk 0:00:44]} 33. Rd5 {[%clk 0:00:26]}  Re6 {[%clk 0:00:42]} 34. f4 {[%clk 0:00:22]}  Kg6 {[%clk 0:00:41]} 35. f5+ {[%clk 0:00:22]} 1-0


[Site "https://www.chess.com"]

[Event "Titled Tuesday Blitz April 12 Late 2022"]
[White "Krishnan, Varun"]
[Black "Sarana, Alexey"]
[WhiteFideId "5054508"]
[BlackFideId "24133795"]
[WhiteElo "2545"]
[BlackElo "2666"]
[Result "0-1"]
[Round "01"]
[TimeControl "180+1"]
[Date "2022.04.12"]
[WhiteClock "0:00:02"]
[BlackClock "0:00:59"]

1. e4 {[%clk 0:02:56]}  c5 {[%clk 0:02:59]} 2. Nf3 {[%clk 0:02:53]}  d6 {[%clk 0:03:00]} 3. d4 {[%clk 0:02:52]}  cxd4 {[%clk 0:03:01]} 4. Nxd4 {[%clk 0:02:52]}  Nf6 {[%clk 0:03:01]} 5. Nc3 {[%clk 0:02:52]}  a6 {[%clk 0:03:02]} 6. a4 {[%clk 0:02:52]}  e5 {[%clk 0:03:00]} 7. Nf3 {[%clk 0:02:51]}  Qc7 {[%clk 0:02:59]} 8. Bg5 {[%clk 0:02:50]}  Nbd7 {[%clk 0:02:55]} 9. Nd2 {[%clk 0:02:49]}  h6 {[%clk 0:02:54]} 10. Bh4 {[%clk 0:02:47]}  g5 {[%clk 0:02:46]} 11. Bg3 {[%clk 0:02:47]}  Nc5 {[%clk 0:02:46]} 12. Bc4 {[%clk 0:02:45]}  Be6 {[%clk 0:02:46]} 13. Qe2 {[%clk 0:02:36]}  Be7 {[%clk 0:02:12]} 14. h4 {[%clk 0:02:23]}  g4 {[%clk 0:02:12]} 15. h5 {[%clk 0:02:23]}  Rc8 {[%clk 0:02:11]} 16. Bh4 {[%clk 0:02:08]}  Ncd7 {[%clk 0:01:33]} 17. Bxe6 {[%clk 0:01:43]}  fxe6 {[%clk 0:01:34]} 18. f3 {[%clk 0:01:43]}  gxf3 {[%clk 0:01:20]} 19. Qxf3 {[%clk 0:01:43]}  Rf8 {[%clk 0:01:10]} 20. Qg3 {[%clk 0:01:40]}  Rg8 {[%clk 0:01:07]} 21. Qh3 {[%clk 0:01:37]}  Ng4 {[%clk 0:01:04]} 22. Bxe7 {[%clk 0:01:32]}  Kxe7 {[%clk 0:01:05]} 23. O-O-O {[%clk 0:01:25]}  b5 {[%clk 0:01:04]} 24. Qh4+ {[%clk 0:01:22]}  Ndf6 {[%clk 0:01:03]} 25. Rh3 {[%clk 0:00:22]}  b4 {[%clk 0:01:03]} 26. Nb3 {[%clk 0:00:22]}  bxc3 {[%clk 0:01:02]} 27. Rxc3 {[%clk 0:00:23]}  Qb6 {[%clk 0:01:02]} 28. Rcd3 {[%clk 0:00:21]}  Qf2 {[%clk 0:00:59]} 29. Qxf2 {[%clk 0:00:05]}  Nxf2 {[%clk 0:01:00]} 30. Rxd6 {[%clk 0:00:04]}  Nxd1 {[%clk 0:01:01]} 31. Rxd1 {[%clk 0:00:04]}  Rxg2 {[%clk 0:01:01]} 32. c3 {[%clk 0:00:04]}  Nxe4 {[%clk 0:01:00]} 33. Rd3 {[%clk 0:00:01]}  Rf8 {[%clk 0:00:58]} 34. Re3 {[%clk 0:00:02]}  Rf1+ {[%clk 0:00:58]} 35. Re1 {[%clk 0:00:02]}  Rxe1# {[%clk 0:00:59]} 0-1


[Site "https://www.chess.com"]

[Event "Titled Tuesday Blitz April 12 Late 2022"]
[White "Le Goff, Ronan"]
[Black "Demchenko, Anton"]
[WhiteFideId "612073"]
[BlackFideId "4160258"]
[WhiteElo "2276"]
[BlackElo "2539"]
[Result "1/2-1/2"]
[Round "01"]
[TimeControl "180+1"]
[Date "2022.04.12"]
[WhiteClock "0:00:08"]
[BlackClock "0:00:07"]

1. d4 {[%clk 0:03:00]}  Nf6 {[%clk 0:02:51]} 2. Nf3 {[%clk 0:02:59]}  g6 {[%clk 0:02:50]} 3. Bg5 {[%clk 0:02:55]}  Bg7 {[%clk 0:02:50]} 4. Nbd2 {[%clk 0:02:54]}  d6 {[%clk 0:02:48]} 5. e4 {[%clk 0:02:53]}  O-O {[%clk 0:02:48]} 6. h3 {[%clk 0:02:21]}  Qe8 {[%clk 0:02:47]} 7. Bc4 {[%clk 0:02:18]}  e5 {[%clk 0:02:47]} 8. dxe5 {[%clk 0:02:19]}  dxe5 {[%clk 0:02:48]} 9. O-O {[%clk 0:02:17]}  Nbd7 {[%clk 0:02:48]} 10. a4 {[%clk 0:02:17]}  a5 {[%clk 0:02:48]} 11. Qe2 {[%clk 0:02:16]}  Nb6 {[%clk 0:02:48]} 12. Bb3 {[%clk 0:02:15]}  Bd7 {[%clk 0:02:24]} 13. Nc4 {[%clk 0:02:08]}  Nxc4 {[%clk 0:02:24]} 14. Qxc4 {[%clk 0:02:07]}  Bc6 {[%clk 0:02:24]} 15. Rfe1 {[%clk 0:02:05]}  Kh8 {[%clk 0:02:02]} 16. Bh4 {[%clk 0:01:50]}  Nh5 {[%clk 0:01:52]} 17. Ng5 {[%clk 0:01:46]}  Kg8 {[%clk 0:01:47]} 18. Rad1 {[%clk 0:01:31]}  h6 {[%clk 0:01:47]} 19. Nf3 {[%clk 0:01:31]}  Kh7 {[%clk 0:01:39]} 20. Kh2 {[%clk 0:01:27]}  g5 {[%clk 0:01:20]} 21. Bg3 {[%clk 0:01:16]}  Nf4 {[%clk 0:01:20]} 22. Bxf4 {[%clk 0:01:16]}  exf4 {[%clk 0:01:05]} 23. Nd4 {[%clk 0:01:16]}  Be5 {[%clk 0:00:58]} 24. f3 {[%clk 0:01:02]}  Ra6 {[%clk 0:00:24]} 25. c3 {[%clk 0:00:45]}  Rb6 {[%clk 0:00:24]} 26. Rd2 {[%clk 0:00:34]}  h5 {[%clk 0:00:24]} 27. Bd1 {[%clk 0:00:28]}  Qe7 {[%clk 0:00:20]} 28. Nf5 {[%clk 0:00:27]}  Qf6 {[%clk 0:00:20]} 29. Qc5 {[%clk 0:00:19]}  Rg8 {[%clk 0:00:18]} 30. Qxa5 {[%clk 0:00:18]}  g4 {[%clk 0:00:17]} 31. fxg4 {[%clk 0:00:17]}  hxg4 {[%clk 0:00:17]} 32. Bxg4 {[%clk 0:00:18]}  Ra6 {[%clk 0:00:07]} 33. Qc5 {[%clk 0:00:13]}  Rxa4 {[%clk 0:00:08]} 34. Qe7 {[%clk 0:00:13]}  Rxe4 {[%clk 0:00:06]} 35. Rxe4 {[%clk 0:00:10]}  Bxe4 {[%clk 0:00:07]} 36. Re2 {[%clk 0:00:09]}  Bxf5 {[%clk 0:00:05]} 37. Qxe5 {[%clk 0:00:07]}  Qxe5 {[%clk 0:00:04]} 38. Rxe5 {[%clk 0:00:07]}  Bxg4 {[%clk 0:00:04]} 39. hxg4 {[%clk 0:00:08]}  Rxg4 {[%clk 0:00:03]} 40. Re7 {[%clk 0:00:08]}  Kg6 {[%clk 0:00:03]} 41. Rxc7 {[%clk 0:00:08]}  b5 {[%clk 0:00:03]} 42. Rb7 {[%clk 0:00:08]}  Rh4+ {[%clk 0:00:02]} 43. Kg1 {[%clk 0:00:08]}  Rh5 {[%clk 0:00:03]} 44. Kf2 {[%clk 0:00:08]}  Rd5 {[%clk 0:00:02]} 45. Kf3 {[%clk 0:00:08]}  Kg5 {[%clk 0:00:02]} 46. Rxf7 {[%clk 0:00:07]}  Rd3+ {[%clk 0:00:03]} 47. Ke4 {[%clk 0:00:07]}  Rd2 {[%clk 0:00:03]} 48. Rxf4 {[%clk 0:00:07]}  Rxb2 {[%clk 0:00:03]} 49. Rf5+ {[%clk 0:00:07]}  Kg4 {[%clk 0:00:03]} 50. Rc5 {[%clk 0:00:07]}  Rb3 {[%clk 0:00:03]} 51. Kd3 {[%clk 0:00:07]}  Rb2 {[%clk 0:00:03]} 52. Rc8 {[%clk 0:00:06]}  Kf4 {[%clk 0:00:03]} 53. Rf8+ {[%clk 0:00:06]}  Ke5 {[%clk 0:00:03]} 54. g4 {[%clk 0:00:06]}  Rg2 {[%clk 0:00:03]} 55. Rf5+ {[%clk 0:00:06]}  Kd6 {[%clk 0:00:02]} 56. g5 {[%clk 0:00:06]}  Rg3+ {[%clk 0:00:01]} 57. Kd4 {[%clk 0:00:06]}  Rg4+ {[%clk 0:00:02]} 58. Kd3 {[%clk 0:00:06]}  Kc6 {[%clk 0:00:02]} 59. Rf6+ {[%clk 0:00:05]}  Kd5 {[%clk 0:00:02]} 60. g6 {[%clk 0:00:06]}  Rg3+ {[%clk 0:00:02]} 61. Kc2 {[%clk 0:00:06]}  Kc4 {[%clk 0:00:03]} 62. Rf4+ {[%clk 0:00:06]}  Kd5 {[%clk 0:00:03]} 63. Rf5+ {[%clk 0:00:06]}  Kc4 {[%clk 0:00:04]} 64. Rf4+ {[%clk 0:00:07]}  Kd5 {[%clk 0:00:04]} 65. Rf6 {[%clk 0:00:07]}  Kc4 {[%clk 0:00:04]} 66. Rc6+ {[%clk 0:00:08]}  Kd5 {[%clk 0:00:04]} 67. Rb6 {[%clk 0:00:06]}  Kc4 {[%clk 0:00:04]} 68. Kd2 {[%clk 0:00:05]}  Rg2+ {[%clk 0:00:03]} 69. Ke3 {[%clk 0:00:05]}  Kxc3 {[%clk 0:00:03]} 70. Kf3 {[%clk 0:00:05]}  Rg1 {[%clk 0:00:03]} 71. Kf4 {[%clk 0:00:05]}  b4 {[%clk 0:00:03]} 72. Kf5 {[%clk 0:00:05]}  b3 {[%clk 0:00:04]} 73. Kf6 {[%clk 0:00:05]}  Rf1+ {[%clk 0:00:04]} 74. Kg7 {[%clk 0:00:05]}  b2 {[%clk 0:00:03]} 75. Rxb2 {[%clk 0:00:05]}  Kxb2 {[%clk 0:00:04]} 76. Kh7 {[%clk 0:00:05]}  Rh1+ {[%clk 0:00:04]} 77. Kg8 {[%clk 0:00:06]}  Kc3 {[%clk 0:00:05]} 78. g7 {[%clk 0:00:06]}  Kd4 {[%clk 0:00:06]} 79. Kf7 {[%clk 0:00:06]}  Rf1+ {[%clk 0:00:06]} 80. Ke7 {[%clk 0:00:07]}  Rg1 {[%clk 0:00:07]} 81. Kf7 {[%clk 0:00:07]}  Rf1+ {[%clk 0:00:07]} 82. Ke7 {[%clk 0:00:07]}  Rg1 {[%clk 0:00:07]} 83. Kf7 {[%clk 0:00:08]}  Ke5 {[%clk 0:00:07]} 84. g8=Q {[%clk 0:00:08]}  Rxg8 {[%clk 0:00:07]} 85. Kxg8 {[%clk 0:00:08]} 1/2-1/2


[Site "https://www.chess.com"]